[Event "Championnat d'Europe Rapide"]
[Date "2024.12.08"]
[White "Navara, David"]
[Black "Stefanova, Antoaneta"]
[WhiteElo "2665"]
[BlackElo "2418"]
[Round "10.21"]
[Result "1-0"]
[TimeControl "900+10"]

1. e4 {[%emt 00:00:01] [%clk 00:15:19]} e5 {[%emt 00:00:02] [%clk 00:15:19]} 2.
Nf3 {[%emt 00:00:03] [%clk 00:15:28]} Nc6 {[%clk 00:15:27]} 3. Bb5 {[%emt
00:00:01] [%clk 00:15:36]} a6 {[%emt 00:00:04] [%clk 00:15:34]} 4. Ba4 {[%emt
00:00:01] [%clk 00:15:45]} d6 {[%emt 00:00:04] [%clk 00:15:40]} 5. O-O {[%emt
00:00:10] [%clk 00:15:44]} Bd7 {[%emt 00:01:04] [%clk 00:14:47]} 6. c3 {[%emt
00:00:16] [%clk 00:15:38]} g6 {[%emt 00:00:36] [%clk 00:14:21]} 7. d4 {[%emt
00:00:04] [%clk 00:15:43]} Bg7 {[%emt 00:00:06] [%clk 00:14:26]} 8. Re1 {[%emt
00:01:01] [%clk 00:14:51]} b5 {[%emt 00:01:33] [%clk 00:13:04]} 9. Bb3 {[%emt
00:01:32] [%clk 00:13:29]} Nf6 {[%emt 00:00:14] [%clk 00:12:59]} 10. Nbd2 {[%emt
00:01:22] [%clk 00:12:17]} O-O {[%emt 00:00:12] [%clk 00:12:58]} 11. Nf1 {[%emt
00:00:04] [%clk 00:12:22]} Qc8 {[%emt 00:03:03] [%clk 00:10:06]} 12. h3 {[%emt
00:01:20] [%clk 00:11:12]} Qb7 {[%emt 00:00:20] [%clk 00:09:56]} 13. Ng3 {[%emt
00:00:24] [%clk 00:10:57]} Rae8 {[%emt 00:00:11] [%clk 00:09:56]} 14. Bc2 {[%emt
00:04:11] [%clk 00:06:57]} Na5 {[%emt 00:03:14] [%clk 00:06:52]} 15. b3 {[%emt
00:00:08] [%clk 00:06:58]} c5 {[%emt 00:01:46] [%clk 00:05:16]} 16. Be3 {[%emt
00:00:12] [%clk 00:06:56]} cxd4 {[%emt 00:00:46] [%clk 00:04:40]} 17. cxd4
{[%emt 00:00:02] [%clk 00:07:04]} Rd8 {[%emt 00:01:15] [%clk 00:03:35]} 18. Qd2
{[%emt 00:00:34] [%clk 00:06:40]} Nc6 {[%emt 00:00:05] [%clk 00:03:41]} 19. Rad1
{[%emt 00:01:04] [%clk 00:05:45]} Rc8 {[%emt 00:00:44] [%clk 00:03:07]} 20. Bb1
{[%emt 00:00:21] [%clk 00:05:34]} Rfe8 {[%emt 00:00:11] [%clk 00:03:07]} 21. Bh6
{[%emt 00:01:28] [%clk 00:04:15]} b4 {[%emt 00:00:21] [%clk 00:02:57]} 22. Bxg7
{[%emt 00:00:50] [%clk 00:03:35]} Kxg7 {[%clk 00:03:06]} 23. Qb2 {[%emt
00:00:29] [%clk 00:03:15]} Qb8 {[%emt 00:00:41] [%clk 00:02:36]} 24. Bd3 {[%emt
00:00:08] [%clk 00:03:16]} a5 {[%emt 00:00:06] [%clk 00:02:40]} 25. Bc4 {[%emt
00:00:08] [%clk 00:03:17]} Re7 {[%emt 00:00:17] [%clk 00:02:34]} 26. Qd2 {[%emt
00:00:54] [%clk 00:02:33]} h6 {[%emt 00:00:08] [%clk 00:02:36]} 27. Rc1 {[%emt
00:00:22] [%clk 00:02:21]} Na7 {[%emt 00:00:29] [%clk 00:02:18]} 28. a4 {[%emt
00:00:21] [%clk 00:02:10]} Be6 {[%emt 00:01:39] [%clk 00:00:49]} 29. Bxe6 {[%emt
00:00:23] [%clk 00:01:56]} Rxe6 {[%emt 00:00:02] [%clk 00:00:57]} 30. Rxc8
{[%emt 00:00:33] [%clk 00:01:33]} Nxc8 {[%emt 00:00:02] [%clk 00:01:05]} 31. Rc1
{[%emt 00:00:06] [%clk 00:01:36]} Re8 {[%emt 00:00:20] [%clk 00:00:56]} 32. dxe5
{[%emt 00:00:18] [%clk 00:01:28]} dxe5 {[%emt 00:00:01] [%clk 00:01:05]} 33. Rc5
{[%emt 00:00:01] [%clk 00:01:37]} Nd6 {[%emt 00:00:13] [%clk 00:01:02]} 34. Rxa5
{[%emt 00:00:19] [%clk 00:01:28]} Ndxe4 {[%emt 00:00:10] [%clk 00:01:03]} 35.
Nxe4 {[%emt 00:00:01] [%clk 00:01:36]} Nxe4 {[%emt 00:00:02] [%clk 00:01:12]}
36. Qe1 {[%emt 00:00:53] [%clk 00:00:52]} Nc3 {[%emt 00:00:53] [%clk 00:00:30]}
37. Rxe5 {[%emt 00:00:27] [%clk 00:00:35]} Rd8 {[%emt 00:00:01] [%clk 00:00:39]}
38. Qf1 {[%emt 00:00:03] [%clk 00:00:40]} Qd6 {[%emt 00:00:25] [%clk 00:00:25]}
39. Qc4 {[%emt 00:00:10] [%clk 00:00:40]} Qd1+ {[%emt 00:00:09] [%clk 00:00:26]}
40. Re1 {[%emt 00:00:02] [%clk 00:00:49]} Qd5 {[%emt 00:00:18] [%clk 00:00:17]}
41. Qxb4 {[%emt 00:00:06] [%clk 00:00:53]} Rc8 {[%emt 00:00:09] [%clk 00:00:18]}
42. Qd4+ {[%emt 00:00:18] [%clk 00:00:44]} Qxd4 {[%emt 00:00:02] [%clk
00:00:27]} 43. Nxd4 {[%emt 00:00:01] [%clk 00:00:53]} Rb8 {[%clk 00:00:36]} 44.
Rc1 {[%emt 00:00:20] [%clk 00:00:43]} Ne4 {[%emt 00:00:06] [%clk 00:00:40]} 45.
a5 {[%emt 00:00:04] [%clk 00:00:49]} Rb4 {[%emt 00:00:28] [%clk 00:00:22]} 46.
Rc4 {[%emt 00:00:03] [%clk 00:00:56]} Rxc4 {[%emt 00:00:02] [%clk 00:00:30]} 47.
bxc4 {[%emt 00:00:02] [%clk 00:01:05]} Nc5 {[%clk 00:00:39]} 48. Nb3 {[%emt
00:00:34] [%clk 00:00:41]} Na6 {[%emt 00:00:13] [%clk 00:00:36]} 49. f4 {[%emt
00:00:01] [%clk 00:00:50]} Kf6 {[%emt 00:00:02] [%clk 00:00:44]} 50. Kf2 {[%clk
00:00:59]} Ke6 {[%emt 00:00:04] [%clk 00:00:51]} 51. Ke3 {[%clk 00:01:07]} Kd6
{[%emt 00:00:02] [%clk 00:00:59]} 52. Kd4 {[%emt 00:00:06] [%clk 00:01:10]} f6
{[%emt 00:00:02] [%clk 00:01:07]} 53. c5+ {[%emt 00:00:03] [%clk 00:01:18]} Kc6
{[%emt 00:00:01] [%clk 00:01:16]} 1-0

[Site "Europe Echecs"]

[Event "Championnat d'Europe Rapide"]
[Date "2024.12.08"]
[White "Sarana, Alexey"]
[Black "Domingo Nunez, Ruben"]
[WhiteElo "2674"]
[BlackElo "2409"]
[Round "10.22"]
[Result "1-0"]
[TimeControl "900+10"]

1. d4 {[%emt 00:29:25] [%clk 00:15:19]} g6 {[%emt 00:00:15] [%clk 00:15:05]} 2.
e4 {[%emt 00:00:07] [%clk 00:15:22]} Bg7 {[%clk 00:15:14]} 3. Nc3 {[%emt
00:00:02] [%clk 00:15:30]} d5 {[%emt 00:00:01] [%clk 00:15:23]} 4. Nxd5 {[%emt
00:01:07] [%clk 00:14:32]} c6 {[%emt 00:00:02] [%clk 00:15:32]} 5. Ne3 {[%emt
00:00:01] [%clk 00:14:40]} Qxd4 {[%emt 00:00:02] [%clk 00:15:40]} 6. Qxd4 {[%emt
00:00:04] [%clk 00:14:46]} Bxd4 {[%emt 00:00:02] [%clk 00:15:49]} 7. a4 {[%emt
00:01:40] [%clk 00:13:16]} Nd7 {[%emt 00:01:19] [%clk 00:14:40]} 8. Bc4 {[%emt
00:00:27] [%clk 00:12:59]} Nc5 {[%emt 00:04:09] [%clk 00:10:41]} 9. f3 {[%emt
00:00:03] [%clk 00:13:06]} Be6 {[%emt 00:00:01] [%clk 00:10:50]} 10. Ne2 {[%emt
00:02:04] [%clk 00:11:11]} Be5 {[%emt 00:01:37] [%clk 00:09:24]} 11. a5 {[%emt
00:00:51] [%clk 00:10:30]} Nf6 {[%emt 00:00:18] [%clk 00:09:16]} 12. Bxe6 {[%emt
00:00:16] [%clk 00:10:24]} Nxe6 {[%emt 00:00:02] [%clk 00:09:24]} 13. Nc4 {[%emt
00:00:01] [%clk 00:10:33]} Bc7 {[%emt 00:00:01] [%clk 00:09:33]} 14. Be3 {[%emt
00:00:20] [%clk 00:10:21]} Nh5 {[%emt 00:00:02] [%clk 00:09:42]} 15. g3 {[%emt
00:01:42] [%clk 00:08:50]} f5 {[%emt 00:00:17] [%clk 00:09:35]} 16. e5 {[%emt
00:00:02] [%clk 00:08:58]} f4 {[%emt 00:00:01] [%clk 00:09:44]} 17. Bd2 {[%emt
00:00:25] [%clk 00:08:41]} fxg3 {[%emt 00:00:18] [%clk 00:09:38]} 18. hxg3
{[%emt 00:00:02] [%clk 00:08:49]} O-O {[%emt 00:00:02] [%clk 00:09:47]} 19. f4
{[%emt 00:00:11] [%clk 00:08:48]} b5 {[%emt 00:00:01] [%clk 00:09:56]} 20. Ne3
{[%emt 00:00:21] [%clk 00:08:36]} Rad8 {[%emt 00:01:01] [%clk 00:09:05]} 21.
O-O-O {[%emt 00:01:17] [%clk 00:07:28]} Nd4 {[%emt 00:01:20] [%clk 00:07:56]}
22. Nxd4 {[%emt 00:00:31] [%clk 00:07:07]} Rxd4 {[%emt 00:00:02] [%clk
00:08:04]} 23. Be1 {[%emt 00:02:55]} Rfd8 {[%clk 00:06:06]} 24. b3 {[%emt
00:01:47] [%clk 00:04:52]} a6 {[%emt 00:00:45] [%clk 00:05:32]} 25. Rxd4 {[%emt
00:01:02] [%clk 00:04:00]} Rxd4 {[%clk 00:05:41]} 26. Bf2 {[%emt 00:01:13] [%clk
00:02:57]} Rd7 {[%emt 00:00:27] [%clk 00:05:24]} 27. b4 {[%emt 00:00:04] [%clk
00:03:04]} Ng7 {[%emt 00:01:57] [%clk 00:03:37]} 28. Rd1 {[%emt 00:01:31] [%clk
00:01:42]} Rxd1+ {[%emt 00:00:01] [%clk 00:03:46]} 29. Nxd1 {[%emt 00:00:01]
[%clk 00:01:51]} Ne6 {[%emt 00:00:01] [%clk 00:03:55]} 30. Nc3 {[%emt 00:00:07]
[%clk 00:01:54]} g5 {[%emt 00:02:39] [%clk 00:01:26]} 31. Be3 {[%emt 00:00:48]
[%clk 00:01:17]} gxf4 {[%emt 00:00:08] [%clk 00:01:27]} 32. gxf4 {[%emt
00:00:01] [%clk 00:01:25]} h5 {[%emt 00:00:01] [%clk 00:01:36]} 33. Kd1 {[%emt
00:00:08] [%clk 00:01:27]} Kf7 {[%emt 00:00:25] [%clk 00:01:22]} 34. Ne4 {[%emt
00:00:12] [%clk 00:01:25]} Kg6 {[%emt 00:00:16] [%clk 00:01:16]} 35. Ke2 {[%emt
00:00:01] [%clk 00:01:34]} Kf5 {[%emt 00:00:13] [%clk 00:01:13]} 36. Kf3 {[%emt
00:00:01] [%clk 00:01:43]} h4 {[%emt 00:00:01] [%clk 00:01:22]} 37. c3 {[%emt
00:00:01] [%clk 00:01:52]} Bb8 {[%emt 00:00:43] [%clk 00:00:50]} 38. Nf2 {[%emt
00:00:16] [%clk 00:01:45]} Nc7 {[%emt 00:00:35] [%clk 00:00:25]} 39. Nd3 {[%emt
00:00:49] [%clk 00:01:05]} Nd5 {[%emt 00:00:21] [%clk 00:00:15]} 40. Bd4 {[%clk
00:01:14]} h3 {[%emt 00:00:03] [%clk 00:00:23]} 41. Kg3 {[%clk 00:01:24]} h2
{[%emt 00:00:02] [%clk 00:00:32]} 42. Kxh2 {[%emt 00:00:01] [%clk 00:01:32]}
Nxf4 {[%clk 00:00:41]} 43. Nc5 {[%emt 00:00:01] [%clk 00:01:41]} Bxe5 {[%emt
00:00:29] [%clk 00:00:22]} 44. Nxa6 {[%emt 00:00:03] [%clk 00:01:48]} Ne6+
{[%emt 00:00:13] [%clk 00:00:19]} 45. Bxe5 {[%emt 00:00:02] [%clk 00:01:56]}
Kxe5 {[%emt 00:00:01] [%clk 00:00:28]} 46. Nc5 {[%emt 00:00:23] [%clk 00:01:43]}
Nc7 {[%emt 00:00:02] [%clk 00:00:37]} 47. Kg3 {[%emt 00:00:29] [%clk 00:01:23]}
Kd5 {[%clk 00:00:46]} 48. Kf4 {[%emt 00:00:31] [%clk 00:01:03]} Kc4 {[%emt
00:00:36] [%clk 00:00:20]} 49. Ne4 {[%clk 00:01:11]} Nd5 {[%emt 00:00:15] [%clk
00:00:15]} 50. Kf5 {[%emt 00:00:09] [%clk 00:01:13]} Kd3 {[%emt 00:00:08] [%clk
00:00:16]} 51. a6 {[%emt 00:00:23] [%clk 00:01:00]} Nc7 {[%emt 00:00:07] [%clk
00:00:19]} 52. a7 {[%clk 00:01:09]} Ke3 {[%emt 00:00:11] [%clk 00:00:18]} 53.
Nc5 {[%emt 00:00:13] [%clk 00:01:06]} Kd2 {[%emt 00:00:07] [%clk 00:00:22]} 54.
Na6 {[%emt 00:01:00] [%clk 00:00:15]} Na8 {[%clk 00:00:31]} 55. Ke6 {[%emt
00:00:10] [%clk 00:00:15]} Kxc3 {[%emt 00:00:02] [%clk 00:00:40]} 56. Kd7 {[%emt
00:00:09] [%clk 00:00:15]} c5 {[%clk 00:00:49]} 57. bxc5 {[%emt 00:00:03] [%clk
00:00:22]} b4 {[%emt 00:00:28] [%clk 00:00:32]} 58. Nxb4 {[%emt 00:00:07] [%clk
00:00:24]} Kxb4 {[%emt 00:00:01] [%clk 00:00:41]} 59. c6 {[%clk 00:00:34]} Nb6+
{[%emt 00:00:37] [%clk 00:00:15]} 60. Kd8 {[%emt 00:00:08] [%clk 00:00:35]} 1-0

[Site "Europe Echecs"]

[Event "Championnat d'Europe Rapide"]
[Date "2024.12.08"]
[White "Koelle, Tobias"]
[Black "Deac, Bogdan-Daniel"]
[WhiteElo "2437"]
[BlackElo "2696"]
[Round "10.23"]
[Result "1/2-1/2"]
[TimeControl "900+10"]

1. d4 {[%clk 00:15:19]} Nf6 {[%clk 00:15:19]} 2. c4 {[%clk 00:15:27]} e6 {[%emt
00:00:01] [%clk 00:15:28]} 3. Nf3 {[%emt 00:00:02] [%clk 00:15:36]} b6 {[%emt
00:00:03] [%clk 00:15:35]} 4. g3 {[%emt 00:00:02] [%clk 00:15:43]} Bb7 {[%emt
00:00:03] [%clk 00:15:42]} 5. Bg2 {[%emt 00:00:01] [%clk 00:15:52]} g6 {[%emt
00:00:02] [%clk 00:15:50]} 6. O-O {[%emt 00:00:11] [%clk 00:15:50]} Bg7 {[%emt
00:00:02] [%clk 00:15:58]} 7. Nc3 {[%emt 00:00:02] [%clk 00:15:59]} Ne4 {[%emt
00:00:02] [%clk 00:16:05]} 8. Nxe4 {[%emt 00:00:02] [%clk 00:16:07]} Bxe4 {[%emt
00:00:03] [%clk 00:16:13]} 9. Bg5 {[%emt 00:00:02] [%clk 00:16:15]} Qc8 {[%emt
00:00:02] [%clk 00:16:20]} 10. Qd2 {[%emt 00:00:43] [%clk 00:15:42]} h6 {[%emt
00:00:04] [%clk 00:16:26]} 11. Be3 {[%emt 00:00:11] [%clk 00:15:42]} d6 {[%emt
00:00:02] [%clk 00:16:34]} 12. Rfd1 {[%emt 00:00:21] [%clk 00:15:30]} Nd7 {[%emt
00:00:19] [%clk 00:16:26]} 13. Rac1 {[%emt 00:00:40] [%clk 00:15:00]} Nf6 {[%emt
00:00:27] [%clk 00:16:10]} 14. h3 {[%emt 00:00:06] [%clk 00:15:03]} a5 {[%emt
00:00:10] [%clk 00:16:10]} 15. b3 {[%emt 00:00:14] [%clk 00:15:00]} Kf8 {[%emt
00:00:13] [%clk 00:16:06]} 16. Kh2 {[%emt 00:02:07] [%clk 00:13:03]} Kg8 {[%emt
00:00:23] [%clk 00:15:54]} 17. Ne1 {[%emt 00:01:15] [%clk 00:11:58]} Bxg2 {[%emt
00:00:52] [%clk 00:15:12]} 18. Nxg2 {[%emt 00:00:01] [%clk 00:12:05]} Kh7 {[%emt
00:00:02] [%clk 00:15:20]} 19. f3 {[%emt 00:00:17] [%clk 00:11:59]} Qb7 {[%emt
00:00:26] [%clk 00:15:03]} 20. Bf2 {[%emt 00:00:04] [%clk 00:12:06]} Rhc8 {[%emt
00:01:18] [%clk 00:13:55]} 21. e4 {[%emt 00:00:12] [%clk 00:12:04]} b5 {[%emt
00:00:02] [%clk 00:14:03]} 22. c5 {[%emt 00:00:36] [%clk 00:11:37]} dxc5 {[%emt
00:00:25] [%clk 00:13:48]} 23. Rxc5 {[%emt 00:00:09] [%clk 00:11:39]} c6 {[%emt
00:00:31] [%clk 00:13:26]} 24. Rdc1 {[%emt 00:00:09] [%clk 00:11:40]} Bf8 {[%emt
00:01:17] [%clk 00:12:20]} 25. R5c2 {[%emt 00:00:03] [%clk 00:11:47]} Ba3 {[%emt
00:00:02] [%clk 00:12:26]} 26. Rd1 {[%emt 00:00:02] [%clk 00:11:56]} Bb4 {[%emt
00:00:16] [%clk 00:12:20]} 27. Qc1 {[%emt 00:00:16] [%clk 00:11:49]} Be7 {[%emt
00:03:03] [%clk 00:09:28]} 28. Nf4 {[%emt 00:00:08] [%clk 00:11:52]} a4 {[%emt
00:00:09] [%clk 00:09:29]} 29. Nd3 {[%emt 00:00:04] [%clk 00:11:58]} axb3 {[%emt
00:00:02] [%clk 00:09:37]} 30. axb3 {[%emt 00:00:01] [%clk 00:12:07]} Nd7 {[%emt
00:00:26] [%clk 00:09:21]} 31. Be3 {[%emt 00:00:01] [%clk 00:12:16]} Bf8 {[%emt
00:00:09] [%clk 00:09:21]} 32. Kg2 {[%emt 00:01:38] [%clk 00:10:47]} Ra6 {[%emt
00:00:08] [%clk 00:09:24]} 33. Bd2 {[%emt 00:01:14] [%clk 00:09:43]} Raa8 {[%emt
00:01:41] [%clk 00:07:54]} 34. Bb4 {[%emt 00:00:28] [%clk 00:09:24]} Bg7 {[%emt
00:00:27] [%clk 00:07:37]} 35. Nc5 {[%emt 00:01:09] [%clk 00:08:25]} Nxc5 {[%emt
00:00:52] [%clk 00:06:55]} 36. Bxc5 {[%emt 00:00:01] [%clk 00:08:34]} Rd8 {[%emt
00:00:16] [%clk 00:06:49]} 37. Rcd2 {[%emt 00:00:59] [%clk 00:07:44]} Ra6 {[%emt
00:00:17] [%clk 00:06:43]} 38. Qc3 {[%emt 00:00:34] [%clk 00:07:20]} Rda8 {[%emt
00:00:14] [%clk 00:06:39]} 39. Qe3 {[%emt 00:00:13] [%clk 00:07:17]} Qd7 {[%emt
00:00:12] [%clk 00:06:37]} 40. g4 {[%emt 00:00:09] [%clk 00:07:18]} Qd8 {[%emt
00:00:13] [%clk 00:06:34]} 41. f4 {[%emt 00:01:20] [%clk 00:06:09]} Ra2 {[%emt
00:00:06] [%clk 00:06:37]} 42. Qf3 {[%emt 00:00:32] [%clk 00:05:47]} Kg8 {[%emt
00:04:56] [%clk 00:01:51]} 43. Qf2 {[%emt 00:00:16] [%clk 00:05:41]} Rxd2 {[%emt
00:00:12] [%clk 00:01:49]} 44. Rxd2 {[%clk 00:05:50]} Ra1 {[%emt 00:00:03] [%clk
00:01:56]} 45. Qf3 {[%emt 00:01:17] [%clk 00:04:43]} Qa5 {[%emt 00:00:14] [%clk
00:01:52]} 46. b4 {[%emt 00:00:40] [%clk 00:04:13]} Qa4 {[%emt 00:00:15] [%clk
00:01:46]} 47. f5 {[%emt 00:00:17] [%clk 00:04:07]} Ra3 {[%emt 00:00:43] [%clk
00:01:13]} 48. Qf1 {[%emt 00:02:35] [%clk 00:01:42]} Qb3 {[%emt 00:00:17] [%clk
00:01:06]} 49. Kh1 {[%clk 00:01:52]} gxf5 {[%emt 00:01:02] [%clk 00:00:14]} 50.
gxf5 {[%emt 00:00:04] [%clk 00:01:58]} exf5 {[%emt 00:00:02] [%clk 00:00:22]}
51. Qxf5 {[%emt 00:00:30] [%clk 00:01:37]} Qb1+ {[%emt 00:00:19] [%clk
00:00:14]} 52. Kh2 {[%emt 00:00:11] [%clk 00:01:36]} Ra1 {[%emt 00:00:10] [%clk
00:00:13]} 53. Qc8+ {[%emt 00:00:02] [%clk 00:01:44]} Kh7 {[%clk 00:00:22]} 54.
Qf5+ {[%emt 00:00:01] [%clk 00:01:53]} Kh8 {[%emt 00:00:01] [%clk 00:00:31]} 55.
Qc8+ {[%emt 00:00:30] [%clk 00:01:34]} Kh7 {[%emt 00:00:01] [%clk 00:00:40]} 56.
Qf5+ {[%emt 00:00:01] [%clk 00:01:42]} Kh8 {[%emt 00:00:01] [%clk 00:00:49]} 57.
Qc8+ {[%clk 00:01:52]} 1/2-1/2

[Site "Europe Echecs"]